bitfinex/quotes_BTCUSD_20250803
["timestamp","ask_amount","ask_price","bid_price","bid_amount"]
[1754250121639,4.45849723,114770.0,114760.0,0.00012482]
[1754250121851,4.45849723,114770.0,114750.0,0.19911482]
[1754250122005,0.59449989,114760.0,114750.0,0.19911482]
[1754250122207,0.59449989,114760.0,114750.0,0.20119482]
[1754250122421,0.54734426,114770.0,114750.0,0.22387863]
[1754250122625,3.423994,114760.0,114750.0,0.15868381]
[1754250123083,0.59449989,114760.0,114750.0,0.13392]
[1754250123225,0.59648989,114760.0,114750.0,0.13592]
[1754250123621,0.66978989,114760.0,114750.0,0.13792]
[1754250123820,0.66978989,114760.0,114750.0,0.13592]
[1754250124038,3.499284,114760.0,114750.0,0.20546]
[1754250124319,4.09378389,114760.0,114750.0,0.20846]
[1754250124981,4.09378389,114760.0,114750.0,0.20546]
[1754250125189,4.10742692,114760.0,114750.0,0.20346]
[1754250125394,4.10742692,114760.0,114750.0,0.20446]
[1754250125832,4.09378389,114760.0,114750.0,0.20646]
[1754250127487,4.09378389,114760.0,114750.0,0.13692]
[1754250128388,4.09378389,114760.0,114750.0,0.003]
[1754250128775,4.54733479,114760.0,114750.0,0.003]
[1754250128948,0.41529,114760.0,114740.0,0.19846]
[1754250129149,3.423994,114750.0,114740.0,0.19846]
[1754250129407,0.00199,114750.0,114740.0,0.20054]
[1754250129551,0.62120323,114750.0,114740.0,0.20054]
[1754250129760,0.69450323,114750.0,114740.0,0.19846]
[1754250130166,0.69450323,114750.0,114740.0,0.19946]
[1754250130392,0.69450323,114750.0,114740.0,0.20246]
[1754250131405,0.10000334,114750.0,114740.0,0.20146]
[1754250131620,0.07529,114750.0,114740.0,0.20246]
[1754250132060,0.0136439,114760.0,114740.0,0.82138602]
[1754250132295,0.0136439,114760.0,114750.0,0.67051853]
[1754250132518,0.00012426,114770.0,114750.0,0.07596]
[1754250132741,0.00012426,114770.0,114760.0,0.13728]
[1754250132977,0.00012426,114770.0,114760.0,0.1394]
[1754250133195,0.00012426,114770.0,114760.0,0.21012]
[1754250133836,0.00112426,114770.0,114760.0,0.21012]
[1754250134050,0.00112426,114770.0,114760.0,0.231132]
[1754250134262,0.00112426,114770.0,114760.0,0.21012]
[1754250134952,3.423994,114770.0,114760.0,0.21012]
[1754250135430,3.423994,114770.0,114760.0,0.20612]
[1754250135893,3.423994,114770.0,114760.0,0.19812]
[1754250139868,3.423994,114770.0,114760.0,0.195]
[1754250141156,0.00213,114770.0,114760.0,0.195]
[1754250141842,0.0011104,114770.0,114760.0,0.195]
[1754250142520,0.0011104,114770.0,114760.0,0.19]
[1754250143223,0.0011104,114770.0,114760.0,0.182]
[1754250143465,0.0011104,114770.0,114760.0,0.07384]
[1754250143679,0.0011104,114770.0,114760.0,0.20784]
[1754250143906,0.59561029,114770.0,114760.0,0.20784]
[1754250144503,0.0011104,114770.0,114760.0,0.20784]
[1754250146305,0.00723399,114770.0,114760.0,0.20784]
[1754250147072,0.00723399,114770.0,114760.0,0.228936]
[1754250147289,0.00612359,114770.0,114760.0,0.232056]
[1754250147528,0.82359641,114780.0,114760.0,0.21096]
[1754250147764,0.82359641,114780.0,114760.0,0.2111021]
[1754250147974,3.423994,114770.0,114760.0,0.2111021]
[1754250148148,0.00612359,114770.0,114760.0,0.2111021]
[1754250148369,0.82359641,114780.0,114760.0,0.2111021]
[1754250148540,3.423994,114770.0,114760.0,0.23221231]
[1754250148740,0.00612359,114770.0,114760.0,0.2111021]
[1754250148945,0.82459641,114780.0,114760.0,0.2111021]
[1754250149218,3.423994,114770.0,114760.0,0.2101021]
[1754250149408,0.00612359,114770.0,114760.0,0.2101021]
[1754250149620,0.00612359,114770.0,114760.0,0.2041021]
[1754250149771,3.43011759,114770.0,114760.0,0.2041021]
[1754250149978,0.00612359,114770.0,114760.0,0.2041021]
[1754250150176,0.00309,114770.0,114760.0,0.1961021]
[1754250150427,0.01134359,114770.0,114760.0,0.1961021]
[1754250150644,0.00612359,114770.0,114760.0,0.1961021]
[1754250150851,3.423994,114770.0,114760.0,0.1961021]
[1754250151057,0.00612359,114770.0,114760.0,0.1961021]
[1754250151257,0.82359641,114780.0,114760.0,0.1961021]
[1754250151414,3.423994,114770.0,114760.0,0.1961021]
[1754250151618,0.00612359,114770.0,114760.0,0.1961021]
[1754250151839,0.00921359,114770.0,114760.0,0.1971021]
[1754250152067,0.00921359,114770.0,114760.0,0.1961021]
[1754250152840,0.01134359,114770.0,114760.0,0.1961021]
[1754250153030,0.01134359,114770.0,114760.0,0.1971021]
[1754250153224,0.01134359,114770.0,114760.0,0.1969421]
[1754250155504,0.00522,114770.0,114760.0,0.1969421]
[1754250156324,0.07754,114770.0,114760.0,0.1969421]
[1754250156748,0.08366746,114770.0,114760.0,0.1919421]
[1754250157145,0.67816735,114770.0,114760.0,0.1349821]
[1754250157363,0.67816735,114770.0,114750.0,0.2632]
[1754250157364,3.423994,114760.0,114750.0,0.2632]
[1754250157577,3.423994,114760.0,114750.0,0.0001423]
[1754250157578,5.17050124,114760.0,114750.0,0.0001423]
[1754250157788,4.57600135,114760.0,114750.0,0.0001423]
[1754250158647,4.57600135,114760.0,114750.0,0.0011423]
[1754250158860,4.57600135,114760.0,114750.0,0.0001423]
[1754250159272,4.57700135,114760.0,114750.0,0.0001423]
[1754250160001,3.98250146,114760.0,114750.0,0.0001423]
[1754250160217,5.17150124,114760.0,114750.0,0.0001423]
[1754250160860,5.17967296,114760.0,114750.0,0.0001423]
[1754250161742,4.58517307,114760.0,114750.0,0.0001423]
[1754250161946,5.17967296,114760.0,114750.0,0.0001423]
[1754250162157,5.28215526,114760.0,114750.0,0.0001423]
[1754250163822,0.59449989,114740.0,114730.0,0.06759]
[1754250164042,0.59449989,114740.0,114730.0,0.07011473]
[1754250164265,0.4122,114750.0,114730.0,0.06211473]
[1754250164487,0.59767989,114740.0,114730.0,0.06211473]
[1754250164908,0.66880989,114740.0,114730.0,0.06211473]
[1754250165112,0.66880989,114740.0,114730.0,0.06411473]
[1754250165840,0.66880989,114740.0,114730.0,0.06611473]
[1754250165979,0.66880989,114740.0,114730.0,0.06411473]
[1754250166224,0.4738,114750.0,114730.0,0.0908266]
[1754250166428,0.4738,114750.0,114740.0,0.06759]
[1754250166628,0.4738,114750.0,114740.0,0.06964]
[1754250166888,0.4738,114750.0,114740.0,0.06947232]
[1754250167260,0.47698,114750.0,114740.0,0.06947232]
[1754250167413,1.07358989,114750.0,114740.0,0.06947232]
[1754250167830,1.14260989,114750.0,114740.0,0.06947232]
[1754250168642,0.54811,114750.0,114740.0,0.06947232]
[1754250168849,1.14260989,114750.0,114740.0,0.06947232]
[1754250169722,1.14260989,114750.0,114740.0,0.06742232]
[1754250171031,1.14260989,114750.0,114730.0,0.00047473]
[1754250171500,1.14260989,114750.0,114720.0,0.15729793]
[1754250171643,1.14308574,114750.0,114720.0,0.24593077]
[1754250171858,1.14308574,114750.0,114720.0,0.24375156]
[1754250172905,1.14308574,114750.0,114730.0,0.06759]
[1754250175002,1.07088574,114750.0,114730.0,0.06759]
[1754250175321,0.0722,114740.0,114730.0,0.06759]
[1754250175524,0.07431,114740.0,114730.0,0.06964]
[1754250175914,0.10343541,114740.0,114730.0,0.06964]
[1754250176277,0.08795515,114740.0,114730.0,0.06964]
[1754250176659,0.08795515,114740.0,114730.0,0.07064]
[1754250176868,0.08795515,114740.0,114730.0,0.07164]
[1754250178263,0.10359276,114740.0,114730.0,0.07164]
[1754250178476,0.08795515,114740.0,114730.0,0.09517916]
[1754250178702,0.08795515,114740.0,114730.0,0.03558916]
[1754250179340,0.68245504,114740.0,114730.0,0.002]
[1754250179568,0.66880989,114740.0,114730.0,0.002]
[1754250179760,0.80244989,114740.0,114730.0,0.002]
[1754250180096,0.20795,114740.0,114730.0,0.002]
[1754250180282,0.80244989,114740.0,114730.0,0.002]
[1754250180484,1.14244989,114740.0,114730.0,0.002]
[1754250181714,1.15816714,114740.0,114730.0,0.002]
[1754250182569,1.02452714,114740.0,114730.0,0.002]
[1754250182773,1.15816714,114740.0,114730.0,0.002]
[1754250183224,4.58216114,114740.0,114730.0,0.002]
[1754250183661,4.60780469,114740.0,114730.0,0.002]
[1754250184104,4.58216114,114740.0,114730.0,0.001]
[1754250184337,3.423994,114720.0,114700.0,0.09666344]
[1754250184570,0.13364,114720.0,114700.0,0.09666344]
[1754250184788,0.20584,114720.0,114700.0,0.09666344]
[1754250185159,0.17909313,114720.0,114700.0,0.02907344]
[1754250185371,0.77359302,114720.0,114700.0,0.09991344]
[1754250185558,0.77359302,114720.0,114700.0,0.08973385]
[1754250185701,0.07431,114710.0,114700.0,0.06789]
[1754250185912,0.66880989,114710.0,114700.0,0.06584]
[1754250186120,0.66880989,114710.0,114700.0,0.06684]
[1754250186326,0.07431,114710.0,114700.0,0.001]
[1754250186946,0.07478556,114710.0,114700.0,0.001]
[1754250187172,0.07478556,114710.0,114700.0,0.002]
[1754250187764,0.66928545,114710.0,114700.0,0.002]
[1754250188424,0.66928545,114710.0,114700.0,0.004]
[1754250188647,0.66928545,114710.0,114700.0,0.07159]
[1754250189017,0.66928545,114710.0,114700.0,0.004]
[1754250189823,0.66928545,114710.0,114700.0,0.00383229]
[1754250190362,0.66928545,114710.0,114700.0,0.002]
[1754250190526,0.66928545,114710.0,114700.0,0.001]
[1754250190931,0.66928545,114710.0,114700.0,0.002]
[1754250191330,0.00258556,114710.0,114700.0,0.07025]
[1754250191535,0.00047556,114710.0,114700.0,0.09360929]
[1754250192358,0.01412389,114710.0,114700.0,0.09360929]
[1754250192760,0.01412389,114710.0,114700.0,0.08860929]
[1754250193646,0.01412389,114710.0,114700.0,0.18229172]
[1754250193857,0.01412389,114710.0,114700.0,0.17211213]
[1754250194061,0.01412389,114710.0,114700.0,0.17429172]
[1754250198444,0.01412389,114710.0,114700.0,0.17142172]
[1754250199306,0.01412389,114710.0,114700.0,0.16924213]
[1754250199520,0.01733389,114710.0,114700.0,0.16924213]
[1754250199980,0.01733389,114710.0,114700.0,0.16424213]
[1754250200612,0.498425,114720.0,114700.0,0.16721213]
[1754250200820,0.498425,114720.0,114700.0,0.16735452]
[1754250201034,0.567975,114720.0,114700.0,0.15935452]
[1754250201246,0.567975,114720.0,114700.0,0.11940411]
[1754250201883,0.001,114720.0,114710.0,0.00297]
[1754250202054,0.001,114720.0,114710.0,0.00509]
[1754250202259,0.001,114720.0,114710.0,0.13857]
[1754250202484,0.001,114720.0,114710.0,0.16385841]
[1754250202907,0.73118989,114730.0,114710.0,0.16385841]
[1754250203082,0.74546331,114730.0,114710.0,0.22998841]
[1754250203281,0.002,114720.0,114710.0,0.22998841]
[1754250203789,0.001,114720.0,114710.0,0.22998841]
[1754250203906,0.002,114720.0,114710.0,0.22998841]
[1754250204342,0.001,114720.0,114710.0,0.22998841]
[1754250205427,0.001,114720.0,114710.0,0.2047]
[1754250207019,0.00421,114720.0,114710.0,0.1997]
[1754250207254,0.00321,114720.0,114710.0,0.1997]
[1754250207639,0.00517,114720.0,114710.0,0.1997]
[1754250208121,0.00517,114720.0,114710.0,0.1917]
[1754250208332,0.00517,114720.0,114710.0,0.21974752]
[1754250213735,0.00517,114720.0,114710.0,0.1917]
[1754250214146,0.00517,114720.0,114710.0,0.1867]
[1754250215138,0.00517,114720.0,114710.0,0.1787]
[1754250215926,0.00517,114720.0,114710.0,0.18029]
[1754250216960,0.00321,114720.0,114710.0,0.18029]
[1754250217598,0.00321,114720.0,114710.0,0.20719652]
[1754250218478,0.00321,114720.0,114710.0,0.18029]
[1754250218742,0.00517,114720.0,114710.0,0.18029]
[1754250221241,0.00517,114720.0,114710.0,0.17529]
[1754250222224,0.00517,114720.0,114710.0,0.16729]
[1754250222829,0.59966989,114720.0,114710.0,0.1657]
[1754250223034,0.59966989,114720.0,114710.0,0.19114752]
[1754250223472,0.00517,114720.0,114710.0,0.19114752]
[1754250225357,0.00517,114720.0,114710.0,0.19273752]
[1754250228315,0.00517,114720.0,114710.0,0.18773752]
[1754250229280,0.00517,114720.0,114710.0,0.17973752]
[1754250231430,0.00517,114720.0,114710.0,0.15429]
[1754250231638,0.00517,114720.0,114710.0,0.1527]
[1754250233456,0.00517,114720.0,114710.0,0.15429]
[1754250236424,0.00517,114720.0,114710.0,0.14629]
[1754250236604,0.00517,114720.0,114710.0,0.14129]
[1754250236814,0.67676663,114720.0,114710.0,0.14129]
[1754250237956,0.67676663,114720.0,114710.0,0.1397]
[1754250238156,3.429164,114720.0,114700.0,0.13342239]
[1754250238316,0.67159663,114710.0,114700.0,0.20532239]
[1754250238524,0.67692663,114710.0,114700.0,0.20532239]
[1754250238764,0.00533,114710.0,114700.0,0.20532239]
[1754250239208,0.67692663,114710.0,114700.0,0.20532239]
[1754250239958,0.67692663,114710.0,114700.0,0.20632239]
[1754250240792,0.67692663,114710.0,114700.0,0.20832239]
[1754250241806,0.74314663,114710.0,114700.0,0.20832239]
[1754250242022,0.07155,114710.0,114700.0,0.20832239]
[1754250242230,0.74314663,114710.0,114700.0,0.20832239]
[1754250242649,0.74314663,114710.0,114700.0,0.20732239]
[1754250243102,0.67692663,114710.0,114700.0,0.20732239]
[1754250243322,0.67692663,114710.0,114700.0,0.19932239]
[1754250243514,0.67692663,114710.0,114700.0,0.19732239]
[1754250243852,0.67692663,114710.0,114700.0,0.19232239]
[1754250244308,0.74314663,114710.0,114700.0,0.19232239]
[1754250249413,0.67692663,114710.0,114700.0,0.19232239]
[1754250250434,0.67692663,114710.0,114700.0,0.18432239]
[1754250250640,0.74314663,114710.0,114700.0,0.18432239]
[1754250250850,0.74314663,114710.0,114700.0,0.17932239]
[1754250255677,0.73781663,114710.0,114700.0,0.17932239]
[1754250255901,0.69512663,114710.0,114700.0,0.17932239]
[1754250257816,0.69806663,114710.0,114700.0,0.17432239]
[1754250258445,0.69806663,114710.0,114700.0,0.16632239]
[1754250259033,0.69806663,114710.0,114700.0,0.13328]
[1754250259832,0.48605392,114710.0,114700.0,0.13328]
[1754250260705,0.48605392,114710.0,114690.0,0.09677289]
[1754250260924,0.00492,114710.0,114700.0,0.13328]
[1754250261140,0.67651663,114710.0,114700.0,0.13328]
[1754250261326,0.68523959,114710.0,114690.0,0.07077556]
[1754250261524,0.06607,114700.0,114690.0,0.20405556]
[1754250261681,0.07099,114700.0,114690.0,0.22480912]
[1754250261899,0.07092883,114700.0,114690.0,0.22480912]
[1754250262079,0.07092883,114700.0,114690.0,0.02162912]
[1754250262288,0.07092883,114700.0,114690.0,0.13415556]
[1754250262491,0.74252546,114700.0,114690.0,0.13415556]
[1754250263626,0.7561758,114700.0,114690.0,0.13415556]
[1754250264436,4.99414944,114700.0,114690.0,0.00087556]
[1754250264659,5.36035972,114700.0,114690.0,0.00087556]
[1754250264875,5.40089538,114700.0,114690.0,0.00087556]
[1754250265093,3.423994,114680.0,114660.0,0.20138203]
[1754250265316,0.67357663,114670.0,114660.0,0.20336203]
[1754250265545,0.67357663,114670.0,114660.0,0.19536203]
[1754250265758,0.67357663,114670.0,114660.0,0.06496203]
[1754250265971,0.67357663,114670.0,114660.0,0.0869225]
[1754250266401,0.67357663,114670.0,114660.0,0.06188203]
[1754250266402,0.73964663,114670.0,114660.0,0.06188203]
[1754250266626,0.74258663,114670.0,114660.0,0.001]
[1754250266859,0.07099,114670.0,114660.0,0.001]
[1754250267077,0.66858446,114670.0,114660.0,0.001]
[1754250267309,0.07099,114670.0,114660.0,0.001]
[1754250267963,0.07099,114670.0,114660.0,0.003]
[1754250267964,0.66858446,114670.0,114660.0,0.003]
[1754250268194,0.66858446,114670.0,114660.0,0.0699]
[1754250268406,0.66858446,114670.0,114660.0,0.07288]
[1754250268653,0.07099,114670.0,114660.0,0.09551062]
[1754250268899,0.00198,114670.0,114660.0,0.09859062]
[1754250269316,0.59957446,114670.0,114660.0,0.09859062]
[1754250269528,0.66564446,114670.0,114660.0,0.07288]
[1754250269966,0.67871545,114670.0,114660.0,0.07288]
[1754250270609,0.68165545,114670.0,114660.0,0.07288]
[1754250270841,0.00198,114670.0,114660.0,0.07288]
[1754250271047,0.00198,114670.0,114660.0,0.09837457]
[1754250271469,0.66564446,114670.0,114660.0,0.09837457]
[1754250271647,0.66564446,114670.0,114660.0,0.09529457]
[1754250272124,0.66564446,114670.0,114660.0,0.09029457]
[1754250272330,0.68174656,114670.0,114660.0,0.06788]
[1754250272522,0.68174656,114670.0,114650.0,0.0106657]
[1754250272773,0.68174656,114670.0,114650.0,0.1446657]
[1754250272774,0.66660446,114660.0,114650.0,0.1446657]
[1754250272989,0.66858446,114660.0,114650.0,0.1466457]
[1754250273271,0.66858446,114660.0,114630.0,0.026229]
[1754250273476,0.5252,114640.0,114620.0,0.59759446]
[1754250273686,0.5252,114640.0,114630.0,0.13408]
[1754250274113,0.5252,114640.0,114630.0,0.20398]
[1754250274114,0.52567506,114640.0,114630.0,0.20398]
[1754250274319,0.09307506,114640.0,114630.0,0.20398]
[1754250274556,0.09307506,114640.0,114630.0,0.29261284]
[1754250274768,0.09307506,114640.0,114630.0,0.33220214]
[1754250274998,0.09307506,114640.0,114630.0,0.18463723]
[1754250274999,0.59806952,114640.0,114630.0,0.18463723]
[1754250275211,0.67798952,114640.0,114630.0,0.0739]
[1754250275657,0.05047506,114640.0,114630.0,0.16771376]
[1754250275900,0.07670906,114640.0,114630.0,0.16771376]
[1754250276308,0.39047506,114640.0,114630.0,0.16771376]
[1754250276522,0.34047506,114640.0,114630.0,0.16771376]
[1754250276738,0.39047506,114640.0,114630.0,0.16371376]
[1754250277164,0.39047506,114640.0,114630.0,0.17861392]
[1754250277380,0.39047506,114640.0,114630.0,0.176433]
[1754250277795,0.78279601,114640.0,114630.0,0.176433]
[1754250278223,0.83279601,114640.0,114630.0,0.174433]
[1754250278428,0.83279601,114640.0,114630.0,0.178433]
[1754250279022,0.78279601,114640.0,114630.0,0.2046606]
[1754250279273,0.83279601,114640.0,114630.0,0.1996606]
[1754250279666,0.83279601,114640.0,114630.0,0.3259406]
[1754250280019,0.83279601,114640.0,114630.0,0.3229406]
[1754250280448,0.83279601,114640.0,114630.0,0.3239406]
[1754250280889,0.78279601,114640.0,114630.0,0.3229406]
[1754250281297,0.78279601,114640.0,114630.0,0.3249406]
[1754250282581,0.83279601,114640.0,114630.0,0.3249406]
[1754250283788,0.83583601,114640.0,114630.0,0.3249406]
[1754250283991,0.83583601,114640.0,114630.0,0.31204044]
[1754250284374,0.83783601,114640.0,114630.0,0.31204044]
[1754250284968,0.94708601,114640.0,114630.0,0.31204044]
[1754250285780,0.89708601,114640.0,114630.0,0.31204044]
[1754250285987,0.94708601,114640.0,114630.0,0.31204044]
[1754250286243,0.89708601,114640.0,114630.0,0.30704044]
[1754250286676,0.89708601,114640.0,114630.0,0.29904044]
[1754250286886,0.94708601,114640.0,114630.0,0.29904044]
[1754250287158,0.83783601,114640.0,114630.0,0.29904044]
[1754250287376,0.83583601,114640.0,114630.0,0.29904044]
[1754250288763,0.78583601,114640.0,114630.0,0.29904044]
[1754250289005,0.83583601,114640.0,114630.0,0.29904044]
[1754250289224,0.94708601,114640.0,114630.0,0.29904044]
[1754250289677,0.89708601,114640.0,114630.0,0.29904044]
[1754250289882,0.94708601,114640.0,114630.0,0.29904044]
[1754250290108,0.94708601,114640.0,114630.0,0.16476044]
[1754250290322,0.94708601,114640.0,114630.0,0.29884044]
[1754250291192,0.94708601,114640.0,114630.0,0.16476044]
[1754250291404,0.94708601,114640.0,114630.0,0.25494044]
[1754250291871,0.94708601,114640.0,114630.0,0.12086044]
[1754250292096,0.94708601,114640.0,114630.0,0.25490044]
[1754250292724,0.94708601,114640.0,114630.0,0.12086044]
[1754250292943,0.94708601,114640.0,114630.0,0.22867284]
[1754250293392,0.95321704,114640.0,114630.0,0.22367284]
[1754250293655,0.95321704,114640.0,114630.0,0.22371284]
[1754250293894,0.95321704,114640.0,114630.0,0.13808]
[1754250294332,0.97822087,114640.0,114630.0,0.13408]
[1754250294557,0.97822087,114640.0,114630.0,0.13608]
[1754250295257,0.97822087,114640.0,114630.0,0.13708]
[1754250296369,0.92822087,114640.0,114630.0,0.13712]
[1754250296600,0.97822087,114640.0,114630.0,0.13712]
[1754250297451,0.97822087,114640.0,114630.0,0.13708]
[1754250297871,0.97822087,114640.0,114630.0,0.003]
[1754250297872,1.00445487,114640.0,114630.0,0.003]
[1754250298120,1.00445487,114640.0,114630.0,0.13708]
[1754250298573,0.56213392,114640.0,114630.0,0.003]
[1754250298821,1.00445487,114640.0,114630.0,0.13708]
[1754250299309,1.00445487,114640.0,114630.0,0.24477]
[1754250299537,0.97208601,114640.0,114630.0,0.24477]
[1754250299760,0.97822204,114640.0,114630.0,0.13708]
[1754250300441,0.97822204,114640.0,114630.0,0.13208]
[1754250300904,0.97822204,114640.0,114630.0,0.12408]
[1754250301411,0.78893204,114640.0,114630.0,0.32258376]
[1754250301626,0.83893367,114640.0,114630.0,0.32040284]
[1754250301875,0.95322367,114640.0,114630.0,0.32040284]
[1754250302127,0.95322367,114640.0,114630.0,0.21271284]
[1754250302607,0.90322367,114640.0,114630.0,0.22295284]
[1754250302835,0.95322367,114640.0,114630.0,0.33064284]
[1754250303045,0.95322367,114640.0,114630.0,0.22295284]
[1754250304284,0.95322602,114640.0,114630.0,0.22295284]
[1754250305527,0.94708601,114640.0,114630.0,0.22295284]
[1754250307463,0.94708601,114640.0,114630.0,0.21795284]
[1754250308286,0.94708601,114640.0,114630.0,0.08363284]
[1754250308482,0.94708601,114640.0,114630.0,0.21795284]
[1754250308729,0.94708601,114640.0,114630.0,0.13428]
[1754250308730,0.97208601,114640.0,114630.0,0.13428]
[1754250310345,0.97208601,114640.0,114630.0,0.12628]
[1754250310571,0.97208601,114640.0,114620.0,0.13356624]
[1754250310785,0.55296095,114630.0,114620.0,0.22219908]
[1754250310995,0.55494095,114630.0,114620.0,0.35643908]
[1754250311825,0.55494095,114630.0,114620.0,0.35743908]
[1754250312881,0.55494095,114630.0,114620.0,0.35643908]
[1754250313094,0.55494095,114630.0,114620.0,0.35943908]
[1754250313322,0.55494095,114630.0,114620.0,0.36143908]
[1754250314633,0.55494095,114630.0,114620.0,0.35643908]
[1754250314843,0.44745095,114630.0,114620.0,0.35643908]
[1754250316280,0.44547095,114630.0,114620.0,0.35643908]
[1754250317998,0.44547095,114630.0,114620.0,0.34843908]
[1754250319077,0.44232095,114630.0,114620.0,0.34843908]
[1754250319482,0.44745095,114630.0,114620.0,0.34843908]
[1754250320109,0.55494095,114630.0,114620.0,0.34843908]
[1754250321610,0.55494095,114630.0,114620.0,0.34343908]
[1754250323027,0.11262,114630.0,114620.0,0.34343908]
[1754250323250,0.55494095,114630.0,114620.0,0.34343908]
[1754250323466,0.44745095,114630.0,114620.0,0.34343908]
[1754250325318,0.55494095,114630.0,114620.0,0.33543908]
[1754250327956,0.55494095,114630.0,114620.0,0.36126466]
[1754250328560,0.55494095,114630.0,114620.0,0.35626466]
[1754250331823,0.11262,114630.0,114620.0,0.35626466]
[1754250331998,0.55494095,114630.0,114620.0,0.35626466]
[1754250332409,0.55494095,114630.0,114620.0,0.34826466]
[1754250334444,0.55494095,114630.0,114620.0,0.25369842]
[1754250335757,0.55494095,114630.0,114620.0,0.24869842]
[1754250337253,0.55494095,114630.0,114620.0,0.11445842]
[1754250337460,0.55494095,114630.0,114620.0,0.25043954]
[1754250337634,0.55494095,114630.0,114620.0,0.24825842]
[1754250339451,0.55494095,114630.0,114620.0,0.24025842]
[1754250340731,0.55519655,114630.0,114620.0,0.24025842]
[1754250340946,0.44257655,114630.0,114620.0,0.34439842]
[1754250341154,0.45573381,114630.0,114620.0,0.34439842]
[1754250341361,0.57337381,114630.0,114620.0,0.34439842]
[1754250342814,0.57337703,114630.0,114620.0,0.33939842]
[1754250343005,0.56016976,114630.0,114620.0,0.23525842]
[1754250345604,0.56016976,114630.0,114620.0,0.10145842]
[1754250345808,1.04588174,114630.0,114620.0,0.13872]
[1754250346460,1.04588174,114630.0,114620.0,0.13072]
[1754250346913,1.04588174,114630.0,114610.0,0.0259754]
[1754250347135,0.60801976,114620.0,114610.0,0.08863284]
[1754250347361,0.61016976,114620.0,114610.0,0.22235284]
[1754250347758,0.56016976,114620.0,114610.0,0.22235284]
[1754250347965,0.61016976,114620.0,114610.0,0.22235284]
[1754250348164,0.95016976,114620.0,114610.0,0.13572]
[1754250348591,1.39386976,114620.0,114610.0,0.13372]
[1754250348791,1.39386976,114620.0,114580.0,0.20972]
[1754250349009,0.16549,114610.0,114590.0,0.22231284]
[1754250349217,0.56016976,114600.0,114590.0,0.22231284]
[1754250349443,0.56016976,114600.0,114590.0,0.32645284]
[1754250349854,0.56016976,114600.0,114590.0,0.22231284]
[1754250350277,0.56016976,114600.0,114590.0,0.24893323]
[1754250350480,0.56016976,114600.0,114590.0,0.24907588]
[1754250350920,0.56016976,114600.0,114590.0,0.24407588]
[1754250351566,0.56016976,114600.0,114590.0,0.11039588]
[1754250351786,0.56016976,114600.0,114590.0,0.24625757]
[1754250351993,0.56016976,114600.0,114590.0,0.24407588]
[1754250352421,0.11764,114600.0,114590.0,0.24407588]
[1754250352644,0.56016976,114600.0,114590.0,0.24707588]
[1754250353419,0.56016976,114600.0,114590.0,0.23907588]
[1754250354041,0.56016976,114600.0,114590.0,0.24307588]
[1754250354682,0.58516976,114600.0,114590.0,0.24307588]
[1754250355828,0.61016976,114600.0,114590.0,0.24307588]
[1754250357404,0.56016976,114600.0,114590.0,0.24307588]
[1754250357616,0.61016976,114600.0,114590.0,0.24307588]
[1754250357980,0.61016976,114600.0,114590.0,0.23807588]
[1754250360412,0.56016976,114600.0,114590.0,0.23807588]
[1754250360582,0.61016976,114600.0,114590.0,0.16744304]
[1754250360779,0.61016976,114600.0,114590.0,0.16962473]
[1754250361195,0.16764,114600.0,114590.0,0.36239757]
[1754250361405,0.44252976,114600.0,114590.0,0.36021588]
[1754250361583,0.49252976,114600.0,114590.0,0.36021588]
[1754250361802,0.44252976,114600.0,114590.0,0.36021588]
[1754250362207,0.88943976,114600.0,114590.0,0.36021588]
[1754250362761,0.93943976,114600.0,114590.0,0.36021588]
[1754250363517,0.94158976,114600.0,114590.0,0.36021588]
[1754250363713,0.8223628,114600.0,114590.0,0.36021588]
[1754250363956,1.05386976,114600.0,114590.0,0.36021588]
[1754250365027,1.05386976,114600.0,114590.0,0.35521588]
[1754250365264,1.00386976,114600.0,114590.0,0.35521588]
[1754250365441,1.05386976,114600.0,114590.0,0.35521588]
[1754250365653,1.00386976,114600.0,114590.0,0.35521588]
[1754250365900,1.05386976,114600.0,114590.0,0.35521588]
[1754250366511,0.8377017,114600.0,114590.0,0.35521588]
[1754250366744,0.7877017,114600.0,114590.0,0.35521588]
[1754250366954,0.34517194,114600.0,114590.0,0.35521588]
[1754250367405,0.7877017,114600.0,114590.0,0.35521588]
[1754250367826,0.7877017,114600.0,114590.0,0.34721588]
[1754250368629,0.22753194,114600.0,114590.0,0.34721588]
[1754250368836,0.11549,114620.0,114590.0,0.78974564]
[1754250369045,0.00321,114630.0,114610.0,0.44252976]
[1754250369247,0.00321,114630.0,114620.0,0.22449396]
[1754250369459,0.7855517,114640.0,114620.0,0.22231284]
[1754250369661,0.22753194,114640.0,114630.0,0.10414]
[1754250369901,0.22753194,114640.0,114630.0,0.19277284]
[1754250370891,0.228007,114640.0,114630.0,0.19277284]
[1754250371130,0.67053676,114640.0,114630.0,0.19277284]
[1754250371984,0.67053676,114640.0,114630.0,0.19577284]
[1754250372200,0.67053676,114640.0,114630.0,0.19077284]
[1754250372379,0.67353676,114640.0,114630.0,0.19177284]
[1754250374680,0.67353676,114640.0,114630.0,0.18377284]
[1754250375091,0.231007,114640.0,114630.0,0.18377284]
[1754250375294,0.67053676,114640.0,114630.0,0.18377284]
[1754250376206,0.67353676,114640.0,114630.0,0.18377284]
[1754250378250,0.231007,114640.0,114630.0,0.18377284]
[1754250378556,0.67353676,114640.0,114630.0,0.18377284]
[1754250379151,0.67353676,114640.0,114630.0,0.17877284]
[1754250379804,0.78522676,114640.0,114630.0,0.17877284]
[1754250381761,0.78522676,114640.0,114630.0,0.17077284]
[1754250381962,0.78522676,114640.0,114630.0,0.17295376]
[1754250384142,0.78522676,114640.0,114630.0,0.09481376]
[1754250385532,1.12522676,114640.0,114630.0,0.09263284]
[1754250385731,1.17522676,114640.0,114630.0,0.22615284]
[1754250386183,1.17522676,114640.0,114630.0,0.22515284]
[1754250386388,1.12522676,114640.0,114630.0,0.22015284]
[1754250386596,1.17522676,114640.0,114630.0,0.08663284]
[1754250386768,1.17522676,114640.0,114630.0,0.22015284]
[1754250387127,1.17522676,114640.0,114630.0,0.21715284]
[1754250387716,1.17522676,114640.0,114630.0,0.13352]
[1754250388599,1.17622676,114640.0,114630.0,0.13352]
[1754250388835,1.17622676,114640.0,114630.0,0.12552]
[1754250389087,1.17822676,114640.0,114630.0,0.12552]
[1754250389861,0.34,114630.0,114610.0,0.026231]
[1754250390034,0.34,114630.0,114620.0,0.22215284]
[1754250390241,0.89721976,114630.0,114620.0,0.22215284]
[1754250390684,0.89721976,114630.0,114620.0,0.08863284]
[1754250390887,0.89721976,114630.0,114620.0,0.22215284]